Cogmind - Beta 14 --- EXPLORER MODE // 2025.04.28 @ 19:04:34 // Winter2019/RPGLIKE Player: Agod Result: Destroyed by Light Fission Core chain reaction Performance ------------- Evolutions (1) 500 Regions Visited (5) 1000 Robots Destroyed (36) 180 Value Destroyed (840) 840 Prototype IDs (27) 540 Alien Tech Used (0) 0 Bonus (96) 96 TOTAL SCORE: 3156 Bonus ------- Aligned with FarCom 300 Friendly Fire -204 Cogmind --------- Core Integrity 0/1000 Matter 300/300 Energy 156/160 System Corruption 0% Temperature Cool (14) Movement Walking (120) Location -9/Exiles Parts ------- > --- POWER (1) -------- Light Nuclear Core > --- PROPULSION (2) --- Aluminum Leg Aluminum Leg > --- UTILITY (5) ------ Heat Sink 0b10 Alert Chip Targeting Computer Hardened Light Armor Plating AS-neutralizer No. 17b > --- WEAPON (2) ------- Particle Cannon Improved Light Cannon > --- INVENTORY (6) ---- AWS/Autocannon Peak State ------------ > --- POWER ------------ Light Nuclear Core > --- PROPULSION ------- Aluminum Leg Aluminum Leg > --- UTILITY ---------- Heat Sink 0b10 Alert Chip Targeting Computer Hardened Light Armor Plating AS-neutralizer No. 17b > --- WEAPON ----------- Particle Cannon Improved Light Cannon > --- INVENTORY -------- Seismic Detector AWS/Autocannon Missile Launcher [Rating: 27] Favorites ----------- Power Light Nuclear Core Engine Light Ion Engine Power Core Light Nuclear Core Propulsion Aluminum Leg Leg Aluminum Leg Utility Targeting Computer Device Seismic Detector Processor Targeting Computer Protection Hardened Light Armor Plating Weapon Particle Cannon Energy Gun Small Laser Energy Cannon Particle Cannon Ballistic Gun Assault Rifle Ballistic Cannon Improved Light Cannon Launcher Missile Launcher Special Weapon Mining Laser Build | -11 -10 -10 -9 -9 -9 ------- Run | Yrd Mat Min Mat Min Exi Slots Evolved 6 | 3 . . 3 . . Power . | . . . . . . Propulsion 1 | 1 . . . . . Utility 4 | 1 . . 3 . . Weapon 1 | 1 . . . . . Parts Attached 29 | 8 2 . 9 4 6 Power 5 | 1 2 . . 2 . Engine 3 | 1 1 . . 1 . Core 2 | . 1 . . 1 . Reactor . | . . . . . . Propulsion 4 | 2 . . 1 . 1 Treads . | . . . . . . Leg 4 | 2 . . 1 . 1 Wheel . | . . . . . . Hover . | . . . . . . Flight . | . . . . . . Utility 10 | 3 . . 4 . 3 Device 4 | 2 . . 1 . 1 Storage . | . . . . . . Processor 2 | 1 . . . . 1 Hackware . | . . . . . . Protection 4 | . . . 3 . 1 Artifact . | . . . . . . Weapon 10 | 2 . . 4 2 2 Energy Gun 1 | 1 . . . . . Energy Cannon 3 | . . . 1 1 1 Ballistic Gun 2 | 1 . . 1 . . Ballistic Cannon 1 | . . . 1 . . Launcher 1 | . . . . . 1 Special Weapon 2 | . . . 1 1 . Impact Weapon . | . . . . . . Slashing Weapon . | . . . . . . Piercing Weapon . | . . . . . . Special Melee Weapon . | . . . . . . Unidentified Prototypes 2 | . . . . 1 1 Parts Lost . | . . . . . . Power . | . . . . . . Propulsion . | . . . . . . Utility . | . . . . . . Weapon . | . . . . . . Highest Loss Streak . | . . . . . . To Critical Strikes . | . . . . . . Average Slot Usage (%) 95 | . 100 100 97 83 96 Core 9 | . 6 14 10 9 10 Leg 19 | . 28 28 20 12 18 Device 19 | . 14 14 20 20 20 Processor 13 | . 14 14 10 10 17 Protection 10 | . . . 16 12 10 Energy Gun 2 | . 14 14 . . . Energy Cannon 7 | . . . 9 9 9 Ballistic Gun 4 | . 14 14 7 . . Ballistic Cannon 5 | . . . 2 10 10 Peak Build Rating 27 | 7 9 9 17 17 27 Average Rating 16 | 5 7 9 14 15 23 On Entrance 9 | . 7 9 9 17 15 Naked Turns . | . . . . . . Heaviest Build 25 | 7 9 9 21 21 25 Greatest Support 33 | 25 25 25 33 33 30 Greatest Overweight (x) . | . . . . . . Average Overweight (x) . | . . . . . . Largest Inventory Capacity 6 | 5 5 5 6 6 6 Average Capacity 5 | 4 5 5 5 6 6 Most Carried 6 | 4 5 5 5 6 6 Average Carried 4 | 1 4 5 4 5 4 Final Capacity 6 | 5 5 5 6 6 6 Final Carried 6 | 3 5 5 5 6 3 Class Distribution -------------------- 100% | Hacker-Mutant Dominant Class ---------------- Hacker-Mutant | -10/Materials Hacker-Mutant | -10/Mines Hacker-Mutant | -9/Materials Hacker-Mutant | -9/Mines Hacker-Mutant | -9/Exiles Resources | -11 -10 -10 -9 -9 -9 ----------- Run | Yrd Mat Min Mat Min Exi Matter Collected 1135 | 295 53 12 247 46 482 Remotely . | . . . . . . Salvage Created 1460 | 86 219 84 912 19 140 Parts 81 | 11 18 6 40 1 5 Haulers Intercepted 1 | . 1 . . . . Recyclers Shooed . | . . . . . . Parts Field Recycled . | . . . . . . Retrieved Matter . | . . . . . . Parts Self-Destructed . | . . . . . . Prevented . | . . . . . . Kills | -11 -10 -10 -9 -9 -9 ------- Run | Yrd Mat Min Mat Min Exi Combat Hostiles Destroyed 25 | . 2 2 14 . 7 Guns 5 | . 2 2 1 . . Cannons 15 | . . . 13 . 2 AOE 5 | . . . . . 5 Classes Destroyed 9 | 2 3 1 2 . 1 Tunneler 5 | 2 . 2 . 1 . Hauler 1 | . 1 . . . . Recycler 3 | 1 1 . 1 . . Operator 1 | . . . 1 . . Watcher 6 | . 2 . 4 . . Swarmer 2 | . . 2 . . . Grunt 11 | . 2 . 9 . . Sentry 5 | . . . 5 . . Assembled 6 | . . . . . 6 Best Kill Streak 6 | 3 6 2 4 1 6 Combat Bots Only 5 | . 2 2 2 . 5 Max Kills in Single Turn 4 | 1 1 1 1 1 4 Gunslinging . | . . . . . . Exploded 4 | . . . . . 4 Melee . | . . . . . . Uniques/NPCs Destroyed 2 | . . . . . 2 EX-BIN (-9/Exiles) 8R-AWN (-9/Exiles) Combat | -11 -10 -10 -9 -9 -9 -------- Run | Yrd Mat Min Mat Min Exi Hostile Shots Fired 170 | . 6 1 48 . 115 Missed 42 | . 2 . 12 . 28 Damage Taken 1613 | . 38 3 295 . 1277 Core 1216 | . 31 2 213 . 970 Absorbed by Shields . | . . . . . . Redirected to Core 854 | . 22 2 159 . 671 Redirected to Shielding 19 | . . . 19 . . Ignored by Resistances 961 | . 23 3 185 . 750 Core Remaining (%) 99 | 100 . 99 . . . Volleys Fired 153 | 5 11 4 50 2 81 Largest 2 | 2 2 2 2 2 2 Hottest 120 | 60 60 60 120 107 107 Shots Fired 257 | 10 22 8 100 4 113 Gun 83 | 10 22 8 43 . . Cannon 165 | . . . 56 4 105 Launcher 8 | . . . . . 8 Special 1 | . . . 1 . . Kinetic 151 | 5 11 4 50 2 79 Thermal 98 | 5 11 4 50 2 26 Explosive 8 | . . . . . 8 Electromagnetic . | . . . . . . Robot Hit Streak 27 | 5 22 24 17 17 27 Robot Miss Streak 2 | 1 . 1 2 1 2 Penetration Max . | . . . . . . Secondary Targets . | . . . . . . Shots Hit Robots 204 | 7 20 5 71 2 99 Core Hits 78 | 4 12 4 27 1 30 Critical Kills . | . . . . . . Critical Parts Destroyed . | . . . . . . Critical Strikes 2 | . . . 1 . 1 Blast 2 | . . . 1 . 1 Melee Attacks . | . . . . . . Impact . | . . . . . . Slashing . | . . . . . . Piercing . | . . . . . . Sneak Attacks . | . . . . . . Combat Hostiles . | . . . . . . Follow-up Attacks . | . . . . . . Damage Inflicted 3955 | 83 236 62 1284 43 2247 Guns 720 | 83 236 62 339 . . Cannons 2722 | . . . 945 43 1734 Explosions 513 | . . . . . 513 Melee . | . . . . . . Ramming . | . . . . . . Kinetic 2052 | 37 114 28 444 22 1407 Thermal 1390 | 46 122 34 840 21 327 Explosive 513 | . . . . . 513 Electromagnetic . | . . . . . . Impact . | . . . . . . Slashing . | . . . . . . Piercing . | . . . . . . Highest Corruption . | . . . . . . Average Corruption . | . . . . . . Corruption Purged . | . . . . . . Corruption Blocked . | . . . . . . Overload Shots . | . . . . . . Overflow Damage 31 | . . . . . 31 Projectiles 2 | . . . . . 2 Explosions 29 | . . . . . 29 Melee . | . . . . . . Knockbacks 18 | . . . . 1 17 Impact . | . . . . . . Kinetic 18 | . . . . 1 17 Secondary . | . . . . . . Self-Inflicted Damage . | . . . . . . Shots . | . . . . . . Rammed . | . . . . . . Targets Rammed . | . . . . . . Kicked . | . . . . . . Crushed . | . . . . . . Highest Temperature 305 | . 36 6 249 36 305 Average Temperature 75 | . 17 4 57 21 108 Received Heat Transfer 297 | . 36 . 261 . . Effects 2 | . . . . . 2 Interference 2 | . . . . . 2 Siege Activations . | . . . . . . Robots Corrupted . | . . . . . . Combat Hostiles . | . . . . . . Parts Fried . | . . . . . . Impact Corruptions . | . . . . . . Robots Melted . | . . . . . . Combat Hostiles . | . . . . . . Parts Melted 1 | . . . 1 . . Heat Transferred 2565 | 100 275 75 1517 37 561 Parts Sabotaged . | . . . . . . Parts Stolen . | . . . . . . Parts Stripped . | . . . . . . Power Chain Reactions . | . . . . . . Alert | -11 -10 -10 -9 -9 -9 ------- Run | Yrd Mat Min Mat Min Exi Peak Influence 344 | 15 83 82 344 72 . Initial 67 | . 7 22 22 67 . Average 105 | 4 48 45 163 68 . Maximum Alert Level 1 | . . . 1 . . Low Security (%) 82 | 100 100 100 65 100 . Level 1 17 | . . . 34 . . Level 2 . | . . . . . . Level 3 . | . . . . . . Level 4 . | . . . . . . Level 5 . | . . . . . . High Security . | . . . . . . Max Security . | . . . . . . Squads Dispatched 1 | . . . 1 . . Investigation . | . . . . . . Extermination . | . . . . . . Reinforcement 1 | . . . 1 . . Assault . | . . . . . . Garrison . | . . . . . . Intercept . | . . . . . . Searches Triggered . | . . . . . . Construction Impeded . | . . . . . . Haulers Reinforced . | . . . . . . Active Scanning Responses . | . . . . . . Cargo Convoy Interrupts . | . . . . . . Stealth | -11 -10 -10 -9 -9 -9 --------- Run | Yrd Mat Min Mat Min Exi Distress Signals 3 | . 1 . 2 . . Communications Jammed . | . . . . . . Distress Signals . | . . . . . . Times Spotted 35 | . 4 1 22 . 8 Peak Tracking Total 9 | . 3 . 3 . 9 Tactical Retreats 1 | . . . . . 1 Traps | -11 -10 -10 -9 -9 -9 ------- Run | Yrd Mat Min Mat Min Exi Traps Triggered . | . . . . . . Indirectly . | . . . . . . Trap Hack Attempts . | . . . . . . Triggered . | . . . . . . Disarmed . | . . . . . . Reprogrammed . | . . . . . . Reused . | . . . . . . Traps Extracted . | . . . . . . Installed . | . . . . . . Triggered . | . . . . . . Machines | -11 -10 -10 -9 -9 -9 ---------- Run | Yrd Mat Min Mat Min Exi Machines Disabled 7 | . . . . . 7 Max in Single Turn 2 | . . . . . 2 Machines Repaired . | . . . . . . Machines Dismantled . | . . . . . . Machines Sabotaged . | . . . . . . Overloaded Fab Kills . | . . . . . . Hacking | -11 -10 -10 -9 -9 -9 --------- Run | Yrd Mat Min Mat Min Exi Machines Accessed 9 | . 3 . 4 1 1 Terminals 7 | . 3 . 4 . . Fabricators . | . . . . . . Repair Stations . | . . . . . . Recycling Units . | . . . . . . Scanalyzers . | . . . . . . Garrison Access . | . . . . . . Total Hacks 32 | . 10 . 20 1 1 Successful 20 | . 7 . 11 1 1 Failed 12 | . 3 . 9 . . Catastrophic . | . . . . . . Database Lockouts . | . . . . . . Manual 20 | . 4 . 15 . 1 Terminals 30 | . 10 . 20 . . Fabricators . | . . . . . . Repair Stations . | . . . . . . Recycling Units . | . . . . . . Scanalyzers . | . . . . . . Garrison Access . | . . . . . . Terminal Hacks 10 | . 4 . 4 1 1 Prototype ID Bank 1 | . 1 . . . . Open Door 1 | . . . . 1 . Level Access Points 1 | . . . 1 . . Garrison Index 1 | . . . 1 . . Alert Level 2 | . 2 . . . . Locate Traps 2 | . . . 2 . . Dispatch Records 1 | . 1 . . . . Derelict Proto ID Bank 1 | . . . . . 1 Fabricator Hacks . | . . . . . . Repair Station Hacks . | . . . . . . Recycling Unit Hacks . | . . . . . . Scanalyzer . | . . . . . . Garrison Access Hacks . | . . . . . . Unauthorized Hacks 10 | . 3 . 7 . . Terminals 10 | . 3 . 7 . . Assimilate 3 | . . . 3 . . Botnet 7 | . 3 . 4 . . Fabricators . | . . . . . . Repair Stations . | . . . . . . Recycling Units . | . . . . . . Scanalyzers . | . . . . . . Garrison Access . | . . . . . . Data Cores Recovered . | . . . . . . Used . | . . . . . . Hacking Detections 7 | . 3 . 4 . . Full Trace Events 1 | . . . 1 . . Feedback Events . | . . . . . . Feedback Blocked . | . . . . . . Robot Schematics Acquired . | . . . . . . Robots Built . | . . . . . . Authchips . | . . . . . . Time . | . . . . . . Total Robot Build Rating . | . . . . . . Part Schematics Acquired . | . . . . . . Parts Built . | . . . . . . Authchips . | . . . . . . Time . | . . . . . . Total Part Build Rating . | . . . . . . Parts Repaired . | . . . . . . Time . | . . . . . . Parts Recycled . | . . . . . . Recycled Matter . | . . . . . . Retrieved Matter . | . . . . . . Retrieved Components . | . . . . . . Parts Scanalyzed . | . . . . . . Part Schematics Acquired . | . . . . . . Parts Damaged . | . . . . . . Bothacking | -11 -10 -10 -9 -9 -9 ------------ Run | Yrd Mat Min Mat Min Exi Used RIF Installer . | . . . . . . Robots Hacked . | . . . . . . Non-combat . | . . . . . . Combat . | . . . . . . Robot Hacks Applied . | . . . . . . Relay Couplers Released . | . . . . . . Fabnet Peak Effective % . | . . . . . . Robots Rewired . | . . . . . . Allies Hacked . | . . . . . . Hacks Repelled . | . . . . . . Allies | -11 -10 -10 -9 -9 -9 -------- Run | Yrd Mat Min Mat Min Exi Total Allies 1 | . . . 1 . . Largest Group 1 | . . . 1 1 1 Highest-Rated Group 10 | . . . 10 9 9 Highest-Rated Ally 10 | . . . 10 9 9 Total Orders . | . . . . . . Ally Attacks . | . . . . . . Total Damage . | . . . . . . Kills . | . . . . . . Allies Corrupted . | . . . . . . Allies Melted . | . . . . . . Intel | -11 -10 -10 -9 -9 -9 ------- Run | Yrd Mat Min Mat Min Exi Robot Analysis Total . | . . . . . . Derelict Logs Recovered 1 | . . . . 1 . Drone Launches . | . . . . . . Drone Recoveries . | . . . . . . Exploration | -11 -10 -10 -9 -9 -9 ------------- Run | Yrd Mat Min Mat Min Exi Turns Passed 2029 | 91 208 110 643 254 723 Spaces Moved 1231 | 55 136 82 335 197 426 Core 8 | 8 . . . . . Treads . | . . . . . . Legs 1223 | 47 136 82 335 197 426 Wheels . | . . . . . . Hover . | . . . . . . Flight . | . . . . . . Fastest Speed 50 | 50 120 120 120 120 120 Average Speed 119 | 109 120 120 120 120 120 Slowest Speed 120 | 120 120 120 120 120 120 Overloaded Moves . | . . . . . . Propulsion Burnouts . | . . . . . . Robots Hopped . | . . . . . . Cave-ins Triggered . | . . . . . . Exploration Rate (%) 33 | 3 20 25 39 62 54 Regions Visited 5 Branch Regions 3 Pre-discovered Areas . | . . . . . . Known Exits Taken 5 | 1 1 1 1 1 . Unknown Exits Taken . | . . . . . . Scrap Searched 1 | . . 1 . . . Spaces Dug 1 | . . . 1 . . Terrain Destroyed 31 | . . . 1 . 30 Melee . | . . . . . . Projectile 4 | . . . 1 . 3 AOE 27 | . . . . . 27 Terrain Rammed . | . . . . . . Walls Destroyed . | . . . . . . Machines Disabled . | . . . . . . Actions | -11 -10 -10 -9 -9 -9 --------- Run | Yrd Mat Min Mat Min Exi Total 1531 | 72 160 85 475 214 525 Wait 63 | . 1 . 58 2 2 Move 1226 | 54 135 81 334 196 426 Hop . | . . . . . . Pick Up 15 | 3 4 . 5 1 2 Fast Attach 17 | 8 1 . 3 2 3 Attach 4 | . . . 1 2 1 Detach 6 | 1 . . . 4 1 Swap 8 | . 1 . 5 . 2 Drop 24 | 1 4 . 8 5 6 Fire 153 | 5 11 4 50 2 81 Melee . | . . . . . . Ram . | . . . . . . Kick . | . . . . . . Crush . | . . . . . . Escape Stasis . | . . . . . . Rewire 1 | . . . . . 1 Trap . | . . . . . . Miscellaneous 14 | . 3 . 11 . . Route ------- -11/Scrapyard -10/Materials -10/Mines -9/Materials (discovered 4 exits: Mat x3 / *Min) -9/Mines (discovered 3 exits: *Mat / *Exi / [*Zio]) -9/Exiles History --------- Turn | Location | Event 2 | -11/Scrapyard | Identified exit to Materials 2 | -11/Scrapyard | Discovered exit to Materials (range 16) 3 | -11/Scrapyard | Upgraded with Propulsion slot (x1) 3 | -11/Scrapyard | Upgraded with Utility slot (x1) 3 | -11/Scrapyard | Upgraded with Weapon slot (x1) 92 | -11/Scrapyard | Entered Materials 190 | -10/Materials | Identified exit to Mines 190 | -10/Materials | Discovered exit to Mines (range 6) 300 | -10/Materials | Entered Mines 306 | -10/Mines | Build established: Hacker-Mutant 347 | -10/Mines | Met a Derelict bent on vengeance 354 | -10/Mines | Assembled infested the area 395 | -10/Mines | Identified exit to Materials 395 | -10/Mines | Discovered exit to Materials (range 13) 410 | -10/Mines | Entered Materials 412 | -9/Materials | Reached level 2 412 | -9/Materials | Reached level 3 431 | -9/Materials | Upgraded with Utility slot (x2) 487 | -9/Materials | Reached level 4 509 | -9/Materials | Upgraded with Utility slot (x1) 774 | -9/Materials | Identified exit to Mines 774 | -9/Materials | Discovered exit to Mines (range 5) 873 | -9/Materials | Reached level 5 873 | -9/Materials | Identified exit to Materials 1053 | -9/Materials | Entered Mines 1053 | -9/Mines | Accompanied by 1 ally 1096 | -9/Mines | Found the Drone Emporium 1106 | -9/Mines | Found Prototype Device 1156 | -9/Mines | A weapon hastily lodged in a ceiling crevice suddenly fell to the ground 1177 | -9/Mines | A Derelict revealed a hidden shortcut to a safe place 1227 | -9/Mines | Discovered exit to Materials (range 8) 1228 | -9/Mines | Learned 8 Materials zone layouts 1298 | -9/Mines | Deemed a non-threat by the Exiles lab entrance 1299 | -9/Mines | Identified exit to Exiles 1299 | -9/Mines | Discovered exit to Exiles (range 5) 1307 | -9/Mines | Entered Exiles 1307 | -9/Exiles | Accompanied by 1 ally 1336 | -9/Exiles | Met 8R-AWN 1357 | -9/Exiles | Met EX-HEX 1390 | -9/Exiles | Met EX-BIN 1405 | -9/Exiles | Aligned with FarCom system 1406 | -9/Exiles | Given EX-Vault access code 1433 | -9/Exiles | Opened EX-Vault 1442 | -9/Exiles | Found AWS/Autocannon 1454 | -9/Exiles | Found 0b10 Alert Chip 1487 | -9/Exiles | Warned to stay clear of 0b10 Research branches 1492 | -9/Exiles | Attacked by the Exiles 1499 | -9/Exiles | Destroyed EX-BIN 1656 | -9/Exiles | Core integrity fell below 50% 1701 | -9/Exiles | Destroyed 8R-AWN 1726 | -9/Exiles | Found Prototype Device 1726 | -9/Exiles | Identified AS-neutralizer No. 17b 1899 | -9/Exiles | Core integrity fell below 20% 2030 | -9/Exiles | Destroyed by Light Fission Core chain reaction Last Messages --------------- 01909_ DAS Turret heat short circuits Prototype Ballistic Cannon. 01910_ DAS Turret heat damages Prototype Ballistic Cannon. 01925_ as-33443 destroyed. 01929_ Acquired 8 matter. 01944_ Machine disabled. 01947_ A-02 Transporter destroyed. 01955_ Attempting to rewire A-02 Transporter. 01955_ A-02 Transporter is unpowered. 01957_ Acquired 38 matter. 01958_ A-02 Transporter destroyed. 01959_ Acquired 1 matter. 01961_ Acquired 3 matter. 01963_ Acquired 4 matter. 01965_ Destroyed Ion Engine. 01966_ Acquired 4 matter. 01968_ A-02 Transporter destroyed. 01969_ Acquired 4 matter. 02030_ Rigged Lgt. Fission Core explodes. Map ----- +----------------------------------------------------+ | ?????????????????????????????????????????????????? | | ?????????????????????????????????????????????????? | | ?????????????????????????????????????????????????? | | ?????????????????????????????????????????????????? | | ?????????????????????????????????????????????????? | | ?????????????????????????????????????????????????? | | ?????????????????????????????????????????????????? | | ?????????????????????????????????????????????????? | | ?????????????????????????????????????????????????? | | ?????????????????????????????????????????????????? | | ?????????????????????????????????????????????????? | | ?????????????????????????????????????????????????? | | ?????????????????????????????????????????????????? | | #???????????????????????????????????? ???????????? | | ##??????????????????????????????????? ????????? | | "##?????????????????????????????????# #????????? | | #????????????????????????????????# ##???????? | | ""#???????????????????????????????# #???????? | | "#???????????#####???????????????# #???????? | | "##?????????##" #??????????????## ????????? | | ""###???????#" #?????????????## #?????????? | | """#??????##" ##????????????# #?????????? | | "#????### ###????????### #??????????? | | ##???# ########## #??????????? | | ##?## #""""## #???????????? | | ### @ * ##??????????? | | ## #??????????? | | #### ##?????????? | | ""#?#"""""#### ###???????? | | #"""##?#######??#### * ###?????? | | ######??????????????##### ##????? | | ##???????????????????????### #????? | | ##??????????????????????????### #????? | | ""#?????????????????????????????### #????? | | "##??????????????????????????????#" ##???? | | """"##???????????????????????????????#### ###?? | | #####???????????????????????????????????# ##? | | ????????????????????????????????????????## ## | | ?????????????????????????????????????????### | | ???????????????????????????????????????????# # | | ???????????????????????????????????????????## ## | | ????????????????????????????????????????????#####? | | ?????????????????????????????????????????????????? | | ?????????????????????????????????????????????????? | | ?????????????????????????????????????????????????? | | ?????????????????????????????????????????????????? | | ?????????????????????????????????????????????????? | | ?????????????????????????????????????????????????? | | ?????????????????????????????????????????????????? | | ?????????????????????????????????????????????????? | +----------------------------------------------------+ Best States ------------- Heat Dissipation 35 Energy Generation 14 Energy Capacity 250 Matter Stores 300 Matter Capacity 300 Sight Range 16 Terrain Scan Range 14 Terrain Scan Density 10 Armor Coverage 150 Resistance: KI 35 Resistance: TH 35 Resistance: EX 35 Resistance: EM 35 Resistance: I 35 Resistance: S 35 Resistance: P 35 Propulsion Shielding 33 Evasion (%) 55 Targeting Accuracy 5 Offensive Hacking 25 Defensive Hacking 5 Item Schematics ----------------- None Robot Schematics ------------------ None Fabricated ------------ Nothing Alien Tech Used ----------------- None Achievements -------------- None Challenges ------------ None RPGLIKE | -11 -10 -10 -9 -9 -9 --------- Run | Yrd Mat Min Mat Min Exi Levels Raised 4 | . . . 4 . . XP Earned 13396 | 6000 355 750 5441 500 350 XP Spent 11630 | 5750 . . 5880 . . Upgrades 24 | 11 . . 13 . . Propulsion Slot 1 | 1 . . . . . Utility Slot 4 | 1 . . 3 . . Weapon Slot 1 | 1 . . . . . Core Integrity 8 | . . . 8 . . Mass Support 2 | 1 . . 1 . . Inventory Capacity 6 | 5 . . 1 . . Hack Attack % 1 | 1 . . . . . Hack Defense % 1 | 1 . . . . . Protomatter Created 161 | . 40 . 121 . . Integrity Restored 272 | . 41 . 231 . . Core 204 | . 31 . 173 . . Parts 68 | . 10 . 58 . . Protomatter Decayed 3 | . . 3 . . . Game ------ Seed BoltGlidesysBiocell Manual? 0 Play Time 00:26:27 Cumulative 114.5 hours Start 2025.04.28 @ 18:27:25 End 2025.04.28 @ 19:04:34 Sessions 1 Manual Loads 0 Difficulty Explorer Special Mode Winter2019/RPGLIKE Game No. 26 Rogue 0 Adventurer 0 Explorer 26 Win Type - Total 10 Types 5/0/3/0/0/0/0/1/1 Lore% 51 Gallery% 53 Achievement% 68 Wizard Run 0 Options --------- Layout 2 ASCII 0 Keyboard 1 Movement Numpad Keybinds 0 Fullscreen 1 Font 24/Smallcaps Map View 50x44 Zoom Use 0% Tactical HUD 1 Map Filters NONE Filters NONE Steam 1 RUN: 177eb676-f87c-44b7-bbcf-50777986e4dd